Workbook

Sheet Simul
B2: SIMULATEUR DE PAIE
B4: CISSS:
B5: Syndicat : | E5: Pourcentage syndicat: | G5: =IF($C$4="EST",HLOOKUP(C$5,syndicat!B6:F7,2,FALSE),IF($C$4="CENTRE",HLOOKUP($C$5,syndicat!G6:M7,2,FALSE),IF(C4="OUEST",HLOOKUP(C5,syndicat!N6:Y7,2,FALSE),""))) -> 
B6: Heures /jour: | E6: Heures /sem.: | G6: =C6*5 -> 0
B7: Taux horaire:
B8: Statut: | E8: Entente 4 jrs :
B12: Rémunération:
B13: Heures payées par période de 2 semaine | H13: =C7*E13 -> 0
B14: Heures de congés sans solde cotisables
B15: Prime d'ancienneté | G15: 5 | H15: =IF(E15="","",G15/G6*E15) -> 
B16: Prime Non-Chev. Quart | G16: =Impôts!P36 -> 0.02 | H16: =IF(E16="","",G16*$C$7*E16) -> 
B17: Prime Psy. | G17: 20.04 | H17: =IF(E17="","",G17/G6*E17) -> 
B18: Prime compensatoire (ent. 4/jrs) | G18: =IF(AND(C8="TC",G8="Oui"),(IF(#REF!>0,#REF!,"4,3%")),"") ->  | H18: =IF(E18="","",E18*C7*G18) -> 
B20: Primes de fin de semaine | G20: =Impôts!P31 -> 0.04 | H20: =IF(E20="","",((E20*$C$7)+IF($E$15>0,E20*5/$G$6,0))*G20) -> 
B21: Primes de soir | G21: =Impôts!P32 -> 0.04 | H21: =IF(E21="","",((E21*$C$7)+IF($E$15>0,E21*5/$G$6,0))*G21) -> 
B22: Primes de soir majorées | G22: =Impôts!R32 -> 0.08 | H22: =IF(E22="","",((E22*$C$7)+IF($E$15>0,E22*5/$G$6,0))*G22) -> 
A23: =IF(Simul!C23=Impôts!N33,1,IF(Simul!C23=Impôts!N34,2,IF(Simul!C23=Impôts!N35,3,0))) -> 0 | B23: Primes de nuit | G23: =IF(E23="","",IF(AND(C23="",E23<>0)," Case C ?",VLOOKUP(A23,Impôts!$O$33:$P$35,2))) ->  | H23: =IF(E23="","",((E23*$C$7)+IF($E$15>0,E23*5/$G$6,0))*G23) -> 
A24: =IF(Simul!C24=Impôts!N33,1,IF(Simul!C24=Impôts!N34,2,IF(Simul!C24=Impôts!N35,3,0))) -> 0 | B24: Primes de nuit majorées | G24: =IF(E24="","",IF(AND(C24="",E24<>0)," Case C ?",VLOOKUP(A24,Impôts!$Q$33:$R$35,2))) ->  | H24: =IF(E24="","",((E24*$C$7)+IF($E$15>0,E24*5/$G$6,0))*G24) -> 
B27: Autre prime à % | H27: =IF(E27="","",G27*$C$7*E27) -> 
B28: Autre prime à % | H28: =IF(E28="","",G28*$C$7*E28) -> 
B29: Autre prime à montant | H29: =G29 -> 0
A31: =IF(AND($C$8="TC",$E$13<>0,$E$14<>0),1,"") ->  | B31: Bénéfices marginaux maladie | G31: =IF(OR(C8="TC",C8=""),"",IF(C31="",VLOOKUP(C5,BM,2,FALSE),C31)) ->  | H31: =IF(G31<>"",SUM(H13,H16,H17)*G31,"") -> 
A32: =IF(AND($C$8="TC",$E$13<>0,$E$14<>0),1,"") ->  | B32: Bénéfices marginaux férié 5.7% | E32: =IF(AND($C$8="TP",E13<>0),E13,IF(A32=1,E13,"")) ->  | G32: =IF(OR($C$8="TC",$C$8=""),"",VLOOKUP($C$5,BM,3,FALSE)) ->  | H32: =IF(G32<>"",SUM($H$13,H16,H17)*G32,"") ->  | I32: =SUM(H31:H33) -> 0
A33: =IF(AND($C$8="TC",$E$13<>0,$E$14<>0),1,"") ->  | B33: Bénéfices marginaux psy. 2.2% | E33: =IF(AND($C$8="TP",E17<>0),E17,IF(AND(A33=1,E17<>0),E17,"")) ->  | G33: =IF(OR($C$8="TC",$C$8=""),"",IF(E17>0,VLOOKUP($C$5,BM,4,FALSE),"")) ->  | H33: =IF(G33<>"",SUM(H13,H16,H17)*G33,"") -> 
B35: Brut cotisable | H35: =IF(E14>0,(E14*C7)+H13,H13) -> 0
B37: Salaire Brut | E37: =IF(AND(G8="Oui",C8="TC",(E13+E14)<G6*2),E13+E14,IF(AND(C8="TC",(E13+E14)<>G6*2),"Vérifier les heures en TC",IF(AND(C8="TP",G8="Oui"),"Vérifier le statut",IF(AND(C8="",E13+E14<>0),"Vérifier le statut",IF(OR(G8="Non",G8=""),E13+E14,"Vérifier les heures"))))) -> 0 | H37: =SUM(H13:H34) -> 0
B39: Déductions | E39: Taux | G39: exemp.par paie
B40: RRQ | E40: =Impôts!N7 -> 0.059 | G40: =Impôts!N12 -> 134.6153846 | H40: =IF(H37=0,0,($H$37+I58-G40)*E40) -> 0
B41: Impôt Provincial | H41: =IF(C4="CENTRE",'IMPÔT CENTRE'!E53,Impôts!E53) -> 
B42: Impôt fédéral | H42: =IF(C4="CENTRE",'IMPÔT CENTRE'!E30,Impôts!E30) -> 
B43: RREGOP | E43: =Impôts!N20 -> 0.1033 | G43: =IF(C4="CENTRE",Impôts!B56*Impôts!B57/26/(G6*2)*IF(C37>0,C37,E37),Impôts!B56*Impôts!B57/Impôts!D1/(G6*2)*IF(C37>0,C37,E37)) ->  | H43: =(H35-G43)*E43-IF(C4="CENTRE",'IMPÔT CENTRE'!D58,Impôts!D58) -> 
B44: Assurance-emploi taux réduit | E44: =Impôts!N8 -> 0.0118 | H44: =H37*E44 -> 0
B45: Syndicat à pourcentage | C45: =IF($C$4="EST",HLOOKUP(C$5,syndicat!B6:F8,3,FALSE),IF($C$4="CENTRE",HLOOKUP($C$5,syndicat!G6:M8,3,FALSE),IF(C4="OUEST",HLOOKUP(C5,syndicat!N6:Y8,3,FALSE),""))) ->  | E45: =G5 ->  | H45: =IF(AND($C$45="non",$I$32=0),H13*$E$45,IF(I32>0,(H13+I32)*E45,IF(C45="oui",H37*E45,""))) -> 
B46: RQAP | E46: =Impôts!N9 -> 0.00494 | H46: =H37*E46 -> 0
B48: REER
B49: REER FTQ
B50: REER CSN
B52: Assurance collective: Base
B53: Option 1
B54: Option 2
B55: Option 3
B56: Option 4
B57: TVQ
B58: Part Patronale:
B59: Stationnement
B60: Autres déductions
B61: total des déductions | H61: =SUM(H40:H60) -> 
B62: Salaire Net : | H62: =H37-H61 -> 

Sheet Feuil1 (hidden)
A3: MP | B3: simul

Sheet Impôts (hidden)
C1: Périodes de paie : | D1: 26
B3: Pour calculer Impôt fédéral
H4: Tableau fédéral
A5: 1 | B5: Rémunération brute | D5: =Simul!H37 -> 0
A6: 2 | B6: Regop | D6: =Simul!H43 ->  | G6: Revenu | I6: Taux | J6: Constante | M6: Déductions | O6: Maximum
B7: Syndicat | D7: =Simul!H45 ->  | G7: Imposable | I7: Fédéral | M7: RRQ | N7: 0.059 | O7: 3427.9
B8: Reer | D8: =Simul!H48+Simul!H49+Simul!H50 -> 0 | G8: 0 | H8: 49020 | I8: 0.15 | J8: 0 | M8: AE | N8: 0.0118 | O8: 664.54
A9: 3 | B9: Net ligne 1-2 | D9: =D5-SUM(D6:D8) ->  | G9: =H8+0.01 -> 49020.01 | H9: 98040 | I9: 0.205 | J9: 2696 | M9: RQAP | N9: 0.00494 | O9: 412.49
A10: 4 | B10: Revenu imposable annuel | D10: =D9*D1 ->  | G10: =H9+0.01 -> 98040.01 | H10: 151978 | I10: 0.26 | J10: 8088 | M10: Exemption féd. | N10: 13808 | Q10: 13229
A11: 5 | B11: Déduction habitant zones | D11: 0 | G11: =H10+0.01 -> 151978.01 | H11: 216511 | I11: 0.29 | J11: 12648 | M11: Exemption prov. | N11: 15728 | Q11: 12298
A12: 6 | B12: Revenu imposable année ligne 4 - L5 | D12: =D10-D11 ->  | G12: =H11+0.01 -> 216511.01 | I12: 0.33 | J12: 21308 | M12: Exemption RRQ | N12: =O12/26 -> 134.6153846 | O12: 3500
A13: 7 | B13: Multiplie montant L6 par taux Tableau 1 | D13: =E13*D12 ->  | E13: =IF(D12<=H8,I8,IF(AND(D12>=G9,D12<=H9),I9,IF(AND(D12>=G10,D12<=H10),I10,IF(AND(D12>=G11,D12<=H11),I11,IF(D12>=G12,I12,0))))) -> 
A14: 8 | B14: Moins constante | D14: =E14 ->  | E14: =VLOOKUP(E13,I8:J12,2,FALSE) ->  | G14: Crédit pour emploi | J14: 1257
A15: 9 | B15: Imp Fédéral L7 - L8 | D15: =D13-D14 ->  | G15: Abbattement fédéral | I15: 0.165 | M15: Formule CARRA
A16: 10 | B16: Moins crédits fédérals | M16: MGA | N16: 61600
B17: Crédit personnel de base | D17: =N10 -> 13808 | H17: Max | M17: Réduction | N17: 0.0184
B18: RRQ | D18: =IF(E18>H18,H18,E18) -> 0 | E18: =F18*G18 -> 0 | F18: =IF(Simul!H40="",0,IF(K18>0,K18,0)) -> 0 | G18: =D1 -> 26 | H18: =O7 -> 3427.9 | I18: =H18/D1 -> 131.8423077 | K18: =IF(J18=H18,0,IF(Simul!H40+J18>H18,H18-J18,Simul!H40)) -> 0 | M18: Taux ====> | N18: Cotisation | O18: Exemption
B19: AE | D19: =IF(E19>H19,H19,E19) -> 0 | E19: =F19*G19 -> 0 | F19: =IF(Simul!H44="",0,IF(K19>0,K19,0)) -> 0 | G19: =D1 -> 26 | H19: =O8 -> 664.54 | I19: =H19/D1 -> 25.55923077 | K19: =IF(J19=H19,0,IF(Simul!H44+J19>H19,H19-J19,Simul!H44)) -> 0 | M19: RRPE | N19: 0.1229 | O19: 0.35
B20: RQAP | D20: =IF(E20>H20,H20,E20) -> 0 | E20: =F20*G20 -> 0 | F20: =IF(Simul!H46="",0,IF(K20>0,K20,0)) -> 0 | G20: =D1 -> 26 | H20: =O9 -> 412.49 | I20: =H20/D1 -> 15.865 | K20: =IF(J20=H20,0,IF(A34+J20>H20,H20-J20,A34)) -> 0 | M20: RREGOP | N20: 0.1033 | O20: 0.25
K21: =SUM(K18:K20)*D1 -> 0 | M21: RRAS | N21: 0.1229 | O21: 0.35
B22: Cr Canadian pour emploi | D22: =IF(D5<0,-E22,E22) -> 1257 | E22: =J14 -> 1257 | M22: RREGOP-CSST | N22: 0.1033 | O22: 0.25
A23: 10 | D23: =SUM(D17:D22)+IF(D5<0,K21,0) -> 15065 | M23: Aucun | N23: 0 | O23: 0
A24: 11 | B24: Multiplie L10 par taux impot le + bas | D24: 0.15
A25: 12 | B25: Total cr fédéral | D25: =D23*D24 -> 2259.75
A26: 13 | B26: Impot fédéral L9 - L12 | D26: =D15-D25 -> 
A27: 14 | B27: Moins abbat féd 16,5% de L13 | D27: =E27*D26 ->  | E27: =I15 -> 0.165 | G27: Crédit REER
B28: Crédits fond des travailleurs | D28: =D1*E28*(IF(K28<I28,K28,I28)) -> 0 | E28: =J50 -> 0.15 | G28: =D1 -> 26 | H28: 5000 | I28: =H28/G28 -> 192.3076923 | K28: =Simul!H49+Simul!H50 -> 0
A29: 15 | B29: Total impot a payer L13 - L14 | D29: =D26-D27-D28 ->  | M29: Statut | N29: Primes
A30: 16 | B30: Diviser L15 par périodes de paie | D30: =D29/D1 ->  | E30: =IF(AND(D5>=0,D30<=0),0,IF(AND(D5<=0,D30>=0),0,D30)) ->  | M30: TC | P30: régulières | R30: majorées
M31: TP | N31: fds | P31: 0.04
B32: Calcul de Impôt provincial | N32: soir | P32: 0.04 | R32: 0.08
H33: Tableau provincial | N33: 0 - 5 ans | O33: 1 | P33: 0.11 | Q33: 1 | R33: 0.14
A34: =Simul!H37*Simul!E46 -> 0 | N34: 5 - 10 ans | O34: 2 | P34: 0.12 | Q34: 2 | R34: 0.15
A35: 14 | B35: Rémunération annuelle de base | D35: =D5*D1 -> 0 | G35: Revenu | I35: Taux | J35: Constante | N35: 10 ans et + | O35: 3 | P35: 0.14 | Q35: 3 | R35: 0.16
A36: 15 | B36: Crédit Impot provincial | G36: Imposable | I36: Provincial | N36: Non chev.quart | P36: 0.02
B37: Déduction pour emploi | D37: =IF(AND(D35>0,E37>J44),J44,IF(AND(D35<0,E37<-J44),-J44,E37)) -> 0 | E37: =D35*I44 -> 0 | G37: 0 | H37: 45105 | I37: 0.15 | J37: 0
B38: Regop | D38: =IF(Simul!H43="",0,IF(Simul!H43<>0,Simul!H43*D1)) ->  | G38: =H37+0.01 -> 45105.01 | H38: 90200 | I38: 0.2 | J38: 2255
B39: RRQ | G39: =H38+0.01 -> 90200.01 | H39: 109755 | I39: 0.24 | J39: 5863 | N39: Ent4jrs | P39: B.M.
B40: AE + RQAP | G40: =H39+0.01 -> 109755.01 | I40: 0.2575 | J40: 7783 | N40: Oui | P40: =IF(Simul!C5=Impôts!#REF!,6%,6.21%) -> 
B41: REER | D41: =(Simul!H48+Simul!H49+Simul!H50)*D1 -> 0 | N41: Non
A42: 15 | B42: Ass. Coll. Part patronale | D42: =(Simul!I58*D1) -> 0
A43: 16 | B43: Total | D43: =D35+D42-SUM(D36:D41) ->  | I43: Taux | J43: Maximum
A44: 17 | B44: Multiplier par 20% | G44: Crédit pour emploi | I44: 0.06 | J44: 1205
A45: 18 | B45: Total des crédits | D45: =D43*D44 -> 
B46: Impot à payer an L14 - L17 | D46: =E46*D43 ->  | E46: =IF(D43<=H37,I37,IF(AND(D43>=G38,D43<=H38),I38,IF(AND(D43>=G39,D43<=H39),I39,IF(D43>=G40,I40,I40)))) -> 
B47: Constante d'impôt | D47: =E47 ->  | E47: =VLOOKUP(E46,I36:J41,2,FALSE) -> 
A48: 19 | B48: Impôt personnel de base | D48: =N11 -> 15728
B49: Crédit perso X 15% | D49: =(D48*E49) -> 2359.2 | E49: 0.15 | G49: Max. déduc | I49: REER: | J49: Fédéral | K49: Provincial
B50: Crédit FTQ | D50: =IF(F50>=G50,G50,F50) -> 0 | E50: =K51 -> 0.15 | F50: =(Simul!H49*D1)*E50 -> 0 | G50: 750 | I50: CSN / FTQ | J50: 0.15
B51: Crédit CSN | D51: =IF(F51>=G51,G51,F51) -> 0 | E51: =K52 -> 0.2 | F51: =(Simul!H50*D1)*E51 -> 0 | G51: 1000 | I51: FTQ | K51: 0.15
A52: 20 | I52: CSN | K52: 0.2
B53: Retenu impot période paie | D53: =(D46-D47-D49-D50-D51)/D1 ->  | E53: =IF(AND(D5>=0,D53<=0),0,IF(AND(D5<=0,D53>=0),0,D53)) -> 
A56: MGA | B56: =N16 -> 61600
A57: Taux exemption | B57: =VLOOKUP(Simul!B43,Impôts!M19:O25,3) -> 0.25 | C57: Ex. Annuelle | D57: =B56*B57 -> 15400
A58: Réduction | B58: =N17 -> 0.0184 | C58: =B58*((B56/(Simul!G6*D1*2)*IF(Simul!C37>0,Simul!C37,Simul!E37)-Simul!H35)) ->  | D58: =IF(B57=0,0,IF(Simul!E37<0,IF(C58>0,0,C58),IF(C58<0,0,C58))) -> 
A61: Non Synd. | B61: 0

Sheet IMPÔT CENTRE (hidden)
C1: Périodes de paie : | D1: 26
B3: Pour calculer Impôt fédéral
H4: Tableau fédéral
A5: 1 | B5: Rémunération brute | D5: =Simul!H37 -> 0
A6: 2 | B6: Regop | D6: =Simul!H43 ->  | G6: Revenu | I6: Taux | J6: Constante | M6: Déductions | O6: Maximum
B7: Syndicat | D7: =Simul!H45 ->  | G7: Imposable | I7: Fédéral | M7: RRQ | N7: 0.059 | O7: 3427.9
B8: Reer | D8: =Simul!H48+Simul!H49+Simul!H50 -> 0 | G8: 0 | H8: 49020 | I8: 0.15 | J8: 0 | M8: AE | N8: 0.0118 | O8: 664.54
A9: 3 | B9: Net ligne 1-2 | D9: =D5-SUM(D6:D8) ->  | G9: =H8+0.01 -> 49020.01 | H9: 98040 | I9: 0.205 | J9: 2696 | M9: RQAP | N9: 0.00494 | O9: 412.49
A10: 4 | B10: Revenu imposable annuel | D10: =D9*D1 ->  | G10: =H9+0.01 -> 98040.01 | H10: 151978 | I10: 0.26 | J10: 8088 | M10: Exemption féd. | N10: 13808 | Q10: 13229
A11: 5 | B11: Déduction habitant zones | D11: 0 | G11: =H10+0.01 -> 151978.01 | H11: 216511 | I11: 0.29 | J11: 12648 | M11: Exemption prov. | N11: 15728 | Q11: 12298
A12: 6 | B12: Revenu imposable année ligne 4 - L5 | D12: =D10-D11 ->  | G12: =H11+0.01 -> 216511.01 | I12: 0.33 | J12: 21308 | M12: Exemption RRQ | N12: =O12/26 -> 134.6153846 | O12: 3500
A13: 7 | B13: Multiplie montant L6 par taux Tableau 1 | D13: =E13*D12 ->  | E13: =IF(D12<=H8,I8,IF(AND(D12>=G9,D12<=H9),I9,IF(AND(D12>=G10,D12<=H10),I10,IF(AND(D12>=G11,D12<=H11),I11,IF(D12>=G12,I12,0))))) -> 
A14: 8 | B14: Moins constante | D14: =E14 ->  | E14: =VLOOKUP(E13,I8:J12,2,FALSE) ->  | G14: Crédit pour emploi | J14: 1257
A15: 9 | B15: Imp Fédéral L7 - L8 | D15: =D13-D14 ->  | G15: Abbattement fédéral | I15: 0.165 | M15: Formule CARRA
A16: 10 | B16: Moins crédits fédérals | M16: MGA | N16: 61600
B17: Crédit personnel de base | D17: =N10 -> 13808 | H17: Max | M17: Réduction | N17: 0.0184
B18: RRQ | D18: =IF(E18>H18,H18,E18) -> 0 | E18: =F18*G18 -> 0 | F18: =IF(Simul!H40="",0,IF(K18>0,K18,0)) -> 0 | G18: =D1 -> 26 | H18: =O7 -> 3427.9 | I18: =H18/D1 -> 131.8423077 | K18: =IF(J18=H18,0,IF(Simul!H40+J18>H18,H18-J18,Simul!H40)) -> 0 | M18: Taux ====> | N18: Cotisation | O18: Exemption
B19: AE | D19: =IF(E19>H19,H19,E19) -> 0 | E19: =F19*G19 -> 0 | F19: =IF(Simul!H44="",0,IF(K19>0,K19,0)) -> 0 | G19: =D1 -> 26 | H19: =O8 -> 664.54 | I19: =H19/D1 -> 25.55923077 | K19: =IF(J19=H19,0,IF(Simul!H44+J19>H19,H19-J19,Simul!H44)) -> 0 | M19: RRPE | N19: 0.1229 | O19: 0.35
B20: RQAP | D20: =IF(E20>H20,H20,E20) -> 0 | E20: =F20*G20 -> 0 | F20: =IF(Simul!H46="",0,IF(K20>0,K20,0)) -> 0 | G20: =D1 -> 26 | H20: =O9 -> 412.49 | I20: =H20/D1 -> 15.865 | K20: =IF(J20=H20,0,IF(A34+J20>H20,H20-J20,A34)) -> 0 | M20: RREGOP | N20: 0.1033 | O20: 0.25
K21: =SUM(K18:K20)*D1 -> 0 | M21: RRAS | N21: 0.1229 | O21: 0.35
B22: Cr Canadian pour emploi | D22: =IF(D5<0,-E22,E22) -> 1257 | E22: =J14 -> 1257 | M22: RREGOP-CSST | N22: 0.1033 | O22: 0.25
A23: 10 | D23: =SUM(D17:D22)+IF(D5<0,K21,0) -> 15065 | M23: Aucun | N23: 0 | O23: 0
A24: 11 | B24: Multiplie L10 par taux impot le + bas | D24: 0.15
A25: 12 | B25: Total cr fédéral | D25: =D23*D24 -> 2259.75
A26: 13 | B26: Impot fédéral L9 - L12 | D26: =D15-D25 -> 
A27: 14 | B27: Moins abbat féd 16,5% de L13 | D27: =E27*D26 ->  | E27: =I15 -> 0.165 | G27: Crédit REER
B28: Crédits fond des travailleurs | D28: =D1*E28*(IF(K28<I28,K28,I28)) -> 0 | E28: =J50 -> 0.15 | G28: =D1 -> 26 | H28: 5000 | I28: =H28/G28 -> 192.3076923 | K28: =Simul!H49+Simul!H50 -> 0
A29: 15 | B29: Total impot a payer L13 - L14 | D29: =D26-D27-D28 ->  | M29: Statut | N29: Primes
A30: 16 | B30: Diviser L15 par périodes de paie | D30: =D29/D1 ->  | E30: =IF(AND(D5>=0,D30<=0),0,IF(AND(D5<=0,D30>=0),0,D30)) ->  | M30: TC | P30: régulières | R30: majorées
M31: TP | N31: fds | P31: 0.04
B32: Calcul de Impôt provincial | N32: soir | P32: 0.04 | R32: 0.08
H33: Tableau provincial | N33: 0 - 5 ans | O33: 1 | P33: 0.11 | Q33: 1 | R33: 0.14
A34: =Simul!H37*Simul!E46 -> 0 | N34: 5 - 10 ans | O34: 2 | P34: 0.12 | Q34: 2 | R34: 0.15
A35: 14 | B35: Rémunération annuelle de base | D35: =D5*D1 -> 0 | G35: Revenu | I35: Taux | J35: Constante | N35: 10 ans et + | O35: 3 | P35: 0.14 | Q35: 3 | R35: 0.16
A36: 15 | B36: Crédit Impot provincial | G36: Imposable | I36: Provincial | N36: Non chev.quart | P36: 0.02
B37: Déduction pour emploi | D37: =IF(AND(D35>0,E37>J44),J44,IF(AND(D35<0,E37<-J44),-J44,E37)) -> 0 | E37: =D35*I44 -> 0 | G37: 0 | H37: 45105 | I37: 0.15 | J37: 0
B38: Regop | D38: =IF(Simul!H43="",0,IF(Simul!H43<>0,Simul!H43*D1)) ->  | G38: =H37+0.01 -> 45105.01 | H38: 90200 | I38: 0.2 | J38: 2255
B39: RRQ | G39: =H38+0.01 -> 90200.01 | H39: 109755 | I39: 0.24 | J39: 5863 | N39: Ent4jrs | P39: B.M.
B40: AE + RQAP | G40: =H39+0.01 -> 109755.01 | I40: 0.2575 | J40: 7783 | N40: Oui | P40: =IF(Simul!C5=Impôts!#REF!,6%,6.21%) -> 
B41: REER | D41: =(Simul!H48+Simul!H49+Simul!H50)*D1 -> 0 | N41: Non
A42: 15 | B42: Ass. Coll. Part patronale | D42: =(Simul!I58*D1) -> 0
A43: 16 | B43: Total | D43: =D35+D42-SUM(D36:D41) ->  | I43: Taux | J43: Maximum
A44: 17 | B44: Multiplier par 20% | G44: Crédit pour emploi | I44: 0.06 | J44: 1205
A45: 18 | B45: Total des crédits | D45: =D43*D44 -> 
B46: Impot à payer an L14 - L17 | D46: =E46*D43 ->  | E46: =IF(D43<=H37,I37,IF(AND(D43>=G38,D43<=H38),I38,IF(AND(D43>=G39,D43<=H39),I39,IF(D43>=G40,I40,I40)))) -> 
B47: Constante d'impôt | D47: =E47 ->  | E47: =VLOOKUP(E46,I36:J41,2,FALSE) -> 
A48: 19 | B48: Impôt personnel de base | D48: =N11 -> 15728
B49: Crédit perso X 15% | D49: =(D48*E49) -> 2359.2 | E49: 0.15 | G49: Max. déduc | I49: REER: | J49: Fédéral | K49: Provincial
B50: Crédit FTQ | D50: =IF(F50>=G50,G50,F50) -> 0 | E50: =K51 -> 0.15 | F50: =(Simul!H49*D1)*E50 -> 0 | G50: 750 | I50: CSN / FTQ | J50: 0.15
B51: Crédit CSN | D51: =IF(F51>=G51,G51,F51) -> 0 | E51: =K52 -> 0.2 | F51: =(Simul!H50*D1)*E51 -> 0 | G51: 1000 | I51: FTQ | K51: 0.15
A52: 20 | I52: CSN | K52: 0.2
B53: Retenu impot période paie | D53: =(D46-D47-D49-D50-D51)/D1 ->  | E53: =IF(AND(D5>=0,D53<=0),0,IF(AND(D5<=0,D53>=0),0,D53)) -> 
A56: MGA | B56: =N16 -> 61600
A57: Taux exemption | B57: =VLOOKUP(Simul!B43,Impôts!M19:O25,3) -> 0.25 | C57: Ex. Annuelle | D57: =B56*B57 -> 15400
A58: Réduction | B58: =N17 -> 0.0184 | C58: =B58*((B56/(Simul!G6*D1*2)*IF(Simul!C37>0,Simul!C37,Simul!E37)-Simul!H35)) ->  | D58: =IF(B57=0,0,IF(Simul!E37<0,IF(C58>0,0,C58),IF(C58<0,0,C58))) -> 

Sheet syndicat (hidden)
B3: EST | G3: CENTRE | N3: OUEST
A4: MONTÉRÉGIE EST | B4: CAT. 1 | C4: CAT. 2 | D4: CAT. 3 | E4: CAT. 4 | G4: CAT. 1 | H4: CAT. 2 | I4: CAT. 3 | J4: CAT. 4 | K4: CAT. 3 MTL | L4: CAT. 4 MTL | N4: CAT. 1 | O4: CAT. 2 | P4: CAT. 3 | Q4: CAT. 4 | R4: CAT. 1(Estrie) | S4: CAT. 2(Estrie) | T4: CAT. 3(Estrie) | U4: CAT. 4(Estrie) | V4: CAT. 1(Mtl) | W4: CAT. 3(Mtl) | X4: CAT. 4(Mtl)
A5: CODE SYNDICAT | B5: 191 | C5: 192 | D5: 193 | E5: 194 | G5: 221 | H5: 222 | I5: 193 | J5: 229 | L5: 238 | N5: 191 | O5: 192 | P5: 193 | Q5: 194 | R5: 156 et 161 | S5: 162 | T5: 162 | U5: 164 | V5: 198 | W5: 78 | X5: 498
A6: SYNDICAT | B6: FIQ | C6: CSN | D6: CSN | E6: APTS | F6: SNS | G6: FIQ | H6: CSN | I6: CSN | J6: APTS | K6: CSD | L6: SCFP | M6: SNS | N6: FIQ | O6: FTQ | P6: FTQ | Q6: APTS | R6: FIQ | S6: CSN | T6: CSN | U6: CSN | V6: CSQ | W6: CSQ | X6: CSQ | Y6: SNS
A7: TAUX | B7: 0.017 | C7: 0.017 | D7: 0.017 | E7: 0.016 | F7: 0 | G7: 0.0165 | H7: 0.0165 | I7: 0.0165 | J7: 0.016 | K7: 0.013 | L7: 0.0125 | M7: 0 | N7: 0.0185 | O7: 0.015 | P7: 0.015 | Q7: 0.016 | R7: 0.0185 | S7: 0.0185 | T7: 0.0185 | U7: 0.0185 | V7: 0.015 | W7: - | X7: 0.016 | Y7: 0
A8: se calcule sur primes | B8: oui | C8: non | D8: non | E8: non | F8: non | G8: oui | H8: non | I8: non | J8: non | K8: oui | L8: oui | M8: non | N8: oui | O8: oui | P8: oui | Q8: non | R8: oui | S8: non | T8: non | U8: non | V8: oui | W8: oui | X8: oui | Y8: non
A13: BM
A14: syndicat | B14: maladie | C14: férié | D14: psy | G14: Taux plein
A16: FIQ | B16: 0.04 | C16: 0.053 | D16: 0.02 | F16: FIQ | G16: 0.06
A17: CSN | B17: 0.0421 | C17: 0.057 | D17: 0.022 | F17: CSN | G17: 0.0621
A18: APTS | B18: 0.0421 | C18: 0.057 | D18: 0.022 | F18: APTS | G18: 0.0621
A19: APES | B19: 0.0421 | C19: 0.057 | D19: 0.022 | F19: APES | G19: 0.0621
A20: SCFP | B20: 0.0421 | C20: 0.057 | D20: 0.022 | F20: SCFP | G20: 0.0621
A21: SNS | B21: 0.0421 | C21: 0.057 | D21: 0.022 | F21: SNS | G21: 0.0621
A22: CADRE | B22: 0 | C22: 0.057 | D22: 0.022 | F22: CADRE | G22: 0
A23: CSD | B23: 0.0421 | C23: 0.057 | D23: 0.022 | F23: CSD | G23: 0.0621
A24: CSQ | B24: 0.0421 | C24: 0.057 | D24: 0.022 | F24: CSQ | G24: 0.0621
B28: CISSS
B29: EST
B30: CENTRE
B31: OUEST
B34: STATUT
B35: TC
B36: TP
B37: TC en PARTIEL SANS SOLDE
